bitfinex/quotes_SOLUSD_20241105
["timestamp","ask_amount","ask_price","bid_price","bid_amount"]
[1730828981641,17.10117828,167.69,167.65,6.20444901]
[1730828981864,17.10117828,167.69,167.63,17.10117828]
[1730828982772,17.10117828,167.69,167.63,23.06657828]
[1730828983758,23.06487828,167.69,167.63,23.06657828]
[1730828983960,5.9637,167.69,167.65,17.10117828]
[1730828984844,17.10117828,167.71,167.65,17.10117828]
[1730828985058,5.963,167.7,167.62,29.39651662]
[1730828985279,23.06417828,167.7,167.64,17.10117828]
[1730828985567,5.963,167.7,167.65,17.10117828]
[1730828986563,5.963,167.7,167.64,17.10117828]
[1730828986759,23.06417828,167.7,167.64,17.10117828]
[1730828987150,5.963,167.7,167.65,17.10117828]
[1730828989853,5.963,167.7,167.64,5.9651]
[1730828990054,5.963,167.7,167.65,17.10117828]
[1730828991967,23.06417828,167.7,167.64,17.10117828]
[1730828993768,10.93725025,167.71,167.65,10.93725025]
[1730828995166,10.93725025,167.69,167.64,10.93725025]
[1730828995670,16.90025025,167.7,167.64,10.93725025]
[1730828997098,16.90025025,167.7,167.63,5.9653]
[1730828997372,10.93725025,167.69,167.64,10.93725025]
[1730828997748,5.9636,167.69,167.65,10.93725025]
[1730828998149,5.9636,167.69,167.64,16.90235025]
[1730828999680,5.9636,167.69,167.64,10.93725025]
[1730829000774,5.9619,167.73,167.66,10.93725025]
[1730829000986,30.93725025,167.72,167.66,10.93725025]
[1730829001785,10.93725025,167.74,167.69,10.93725025]
[1730829001964,10.93725025,167.74,167.68,10.93725025]
[1730829002481,10.93725025,167.71,167.65,31.81405025]
[1730829003175,10.93725025,167.72,167.66,10.93725025]
[1730829003666,5.9626,167.71,167.66,16.90165025]
[1730829004261,5.9626,167.71,167.67,10.93725025]
[1730829004667,10.93725025,167.73,167.67,10.93725025]
[1730829004867,5.9623,167.72,167.67,10.93725025]
[1730829005778,15.1356,167.76,167.67,16.90125025]
[1730829005955,10.93725025,167.74,167.68,10.93725025]
[1730829006779,5.9619,167.73,167.69,10.93725025]
[1730829007277,5.9616,167.74,167.69,10.93725025]
[1730829007477,25.9605,167.77,167.7,10.93725025]
[1730829007665,10.93725025,167.75,167.7,10.93725025]
[1730829008461,10.93725025,167.76,167.7,10.93725025]
[1730829008659,16.89775025,167.77,167.71,10.93725025]
[1730829008859,16.89775025,167.77,167.71,16.89975025]
[1730829009068,10.93725025,167.76,167.71,5.9625]
[1730829009256,10.93725025,167.75,167.71,5.9625]
[1730829009875,16.89845025,167.75,167.71,5.9625]
[1730829010080,16.89845025,167.75,167.69,10.93725025]
[1730829010264,10.93725025,167.72,167.66,12.0268]
[1730829010472,10.93725025,167.69,167.64,25.84935025]
[1730829010967,10.93725025,167.7,167.64,25.84935025]
[1730829011176,10.93725025,167.7,167.65,10.93725025]
[1730829011661,10.93725025,167.7,167.64,31.81445025]
[1730829011856,5.9633,167.69,167.64,31.81445025]
[1730829012087,5.9633,167.69,167.65,10.93725025]
[1730829012770,16.90055025,167.69,167.64,14.9121]
[1730829012988,10.93725025,167.66,167.62,29.50915368]
[1730829013301,10.93725025,167.64,167.59,16.90415025]
[1730829013603,10.93725025,167.63,167.6,6.20130783]
[1730829013889,16.90295025,167.63,167.58,47.92815025]
[1730829014180,5.9657,167.63,167.58,47.92815025]
[1730829014391,5.9652,167.64,167.6,10.93725025]
[1730829014686,10.93725025,167.66,167.6,10.93725025]
[1730829014987,5.9637,167.68,167.61,10.93725025]
[1730829015187,10.93725025,167.67,167.61,10.93725025]
[1730829015489,17.09408204,167.66,167.61,17.09408204]
[1730829015864,17.09408204,167.66,167.61,23.06018204]
[1730829016559,23.05848204,167.66,167.61,17.09408204]
[1730829016989,5.9644,167.66,167.61,23.06008204]
[1730829017380,23.05848204,167.66,167.61,23.06008204]
[1730829017887,5.9644,167.66,167.61,23.06008204]
[1730829018094,17.09408204,167.66,167.61,23.06008204]
[1730829018271,17.09408204,167.67,167.62,17.09408204]
[1730829018588,17.09408204,167.67,167.61,23.06008204]
[1730829019488,23.05818204,167.67,167.62,17.09408204]
[1730829019669,17.09408204,167.67,167.62,17.09408204]
[1730829020087,17.09408204,167.67,167.61,32.00958204]
[1730829020280,17.09408204,167.66,167.61,32.00958204]
[1730829020584,17.09408204,167.67,167.62,17.09408204]
[1730829021597,23.05818204,167.67,167.62,17.09408204]
[1730829021797,23.05818204,167.67,167.62,23.05978204]
[1730829023472,17.09408204,167.66,167.62,5.9657]
[1730829025377,23.05818204,167.67,167.62,23.05978204]
[1730829025582,23.05818204,167.67,167.63,17.09408204]
[1730829026095,5.9641,167.67,167.63,17.09408204]
[1730829026388,23.05768204,167.69,167.64,17.09408204]
[1730829027085,17.09408204,167.68,167.63,17.09408204]
[1730829027390,14.9022,167.76,167.68,15.179]
[1730829027596,17.09408204,167.75,167.69,17.09408204]
[1730829027896,17.09408204,167.74,167.69,17.09408204]
[1730829028276,17.09408204,167.73,167.68,32.27308204]
[1730829028888,17.09408204,167.71,167.66,17.09408204]
[1730829029198,17.09408204,167.68,167.64,22.6031]
[1730829029579,17.09408204,167.69,167.64,39.69718204]
[1730829030401,5.9634,167.69,167.64,39.69718204]
[1730829032293,5.9634,167.69,167.65,17.09408204]
[1730829033796,17.09408204,167.67,167.63,14.9135]
[1730829036449,17.09408204,167.66,167.6,30.638]
[1730829036601,5.964,167.68,167.64,17.09408204]
[1730829036966,5.964,167.68,167.63,17.09408204]
[1730829037404,5.964,167.68,167.63,10.93822182]
[1730829038470,5.964,167.68,167.65,10.93822182]
[1730829038874,5.964,167.68,167.62,14.9139]
[1730829039076,5.964,167.68,167.64,10.93822182]
[1730829040204,10.93822182,167.71,167.65,10.93822182]
[1730829040574,10.93822182,167.71,167.64,14.9129]
[1730829040800,10.93822182,167.69,167.64,14.9129]
[1730829041778,5.9637,167.68,167.63,10.93822182]
[1730829042389,5.9637,167.68,167.61,44.658584]
[1730829042590,5.9637,167.68,167.63,10.93822182]
[1730829043089,5.9637,167.68,167.61,38.692384]
[1730829043090,10.93822182,167.66,167.6,15.7219]
[1730829043400,10.93822182,167.66,167.6,26.66012182]
[1730829044191,10.93822182,167.66,167.6,10.93822182]
[1730829044783,16.90302182,167.65,167.59,31.82212182]
[1730829046804,10.93822182,167.64,167.59,31.82212182]
[1730829047184,10.93822182,167.65,167.6,10.93822182]
[1730829047680,10.93822182,167.64,167.59,14.9173]
[1730829048008,10.93822182,167.63,167.58,5.9672]
[1730829048588,10.93822182,167.64,167.58,16.90542182]
[1730829048988,16.90362182,167.64,167.59,10.93822182]
[1730829049293,10.93822182,167.61,167.56,22.30569237]
[1730829049527,20.0,167.62,167.56,0.15740588]
[1730829049528,10.93822182,167.58,167.56,0.15740588]
[1730829050182,20.0,167.61,167.56,0.15740588]
[1730829050401,10.93822182,167.59,167.56,0.15740588]
[1730829051003,20.0,167.63,167.56,0.15740588]
[1730829051211,10.93822182,167.59,167.56,0.15740588]
[1730829052015,10.93822182,167.58,167.56,0.15740588]
[1730829052313,10.93822182,167.57,167.56,0.15740588]
[1730829052688,5.967,167.59,167.56,0.15740588]
[1730829053513,16.90522182,167.59,167.56,0.15740588]
[1730829055015,10.93822182,167.58,167.56,0.15740588]
[1730829055213,10.93822182,167.57,167.56,0.15740588]
[1730829059114,20.0,167.63,167.56,0.15740588]
[1730829059115,10.93822182,167.58,167.56,0.15740588]
[1730829059415,10.93822182,167.57,167.56,0.15740588]
[1730829061214,16.90582182,167.57,167.56,0.15740588]
[1730829065819,60.68270582,167.57,167.56,0.15740588]
[1730829066114,60.68270582,167.57,167.47,21.6833]
[1730829066115,43.776884,167.56,167.48,0.3130753]
[1730829066320,10.93822182,167.49,167.48,0.3130753]
[1730829067324,17.13707491,167.49,167.48,0.3130753]
[1730829067718,23.10757491,167.49,167.48,0.3130753]
[1730829069508,66.88445891,167.49,167.48,0.3130753]
[1730829069811,46.88445891,167.49,167.48,0.3130753]
[1730829070315,136.98445891,167.49,167.48,0.3130753]
[1730829070505,136.88445891,167.49,167.48,0.3130753]
[1730829070722,136.98445891,167.49,167.48,0.3130753]
[1730829071595,136.88445891,167.49,167.48,0.3130753]
[1730829072014,136.98445891,167.49,167.48,0.3130753]
[1730829074409,136.98445891,167.49,167.39,22.5560753]
[1730829074410,43.876884,167.48,167.39,16.5820753]
[1730829074594,17.13707491,167.42,167.39,16.5820753]
[1730829075524,17.13707491,167.4,167.39,0.3130753]
[1730829075825,17.13707491,167.4,167.38,14.7489753]
[1730829076203,17.13707491,167.4,167.37,5.9744]
[1730829076598,17.13707491,167.4,167.36,6.1475]
[1730829076922,17.13707491,167.39,167.36,6.1475]
[1730829077155,17.13707491,167.38,167.36,6.1475]
[1730829077387,17.13707491,167.37,167.34,16.1669]
[1730829077996,17.13707491,167.36,167.33,5.9762]
[1730829078220,17.13707491,167.35,167.32,5.9765]
[1730829078522,17.13707491,167.36,167.32,5.9765]
[1730829078718,17.13707491,167.37,167.32,20.9179]
[1730829079514,17.13707491,167.38,167.32,38.05497491]
[1730829079718,17.13707491,167.4,167.34,17.13707491]
[1730829080021,52.65470887,167.48,167.33,6.071]
[1730829080022,17.13707491,167.42,167.36,17.13707491]
[1730829080225,17.13707491,167.43,167.37,17.13707491]
[1730829080400,17.13707491,167.43,167.38,17.13707491]
[1730829080754,5.9715,167.46,167.38,17.13707491]
[1730829080755,23.10857491,167.46,167.39,17.13707491]
[1730829081020,17.13707491,167.46,167.4,17.13707491]
[1730829081207,17.13707491,167.45,167.39,17.13707491]
[1730829081904,17.13707491,167.46,167.4,44.53507491]
[1730829082503,5.9697,167.51,167.42,15.0673]
[1730829082809,17.13707491,167.47,167.42,15.0673]
[1730829083133,17.13707491,167.47,167.43,5.9726]
[1730829083901,17.13707491,167.47,167.43,20.9042]
[1730829084132,70.1,167.53,167.43,20.9042]
[1730829084133,75.969,167.53,167.43,20.9042]
[1730829084384,17.13707491,167.48,167.43,38.04127491]
[1730829084512,17.13707491,167.48,167.43,20.9042]
[1730829084906,17.13707491,167.47,167.43,20.9042]
[1730829085810,17.13707491,167.47,167.43,14.9316]
[1730829085998,17.13707491,167.46,167.41,20.9063]
[1730829086409,17.13707491,167.47,167.41,38.04337491]
[1730829086821,17.13707491,167.46,167.41,20.9063]
[1730829089428,17.13707491,167.44,167.4,12.4637]
[1730829089611,17.13707491,167.45,167.4,27.3979]
[1730829089809,17.13707491,167.46,167.41,17.13707491]
[1730829090040,20.0,167.54,167.44,17.13707491]
[1730829090340,17.13707491,167.48,167.45,15.3922]
[1730829090842,17.13707491,167.47,167.45,15.3922]
[1730829091007,17.13707491,167.47,167.43,20.9035]
[1730829091223,17.13707491,167.46,167.43,14.931]
[1730829091816,17.13707491,167.45,167.43,14.931]
[1730829092105,17.13707491,167.52,167.41,16.0975]
[1730829092106,17.13707491,167.44,167.41,22.0706]
[1730829092892,17.13707491,167.45,167.41,37.0039]
[1730829093730,17.13707491,167.44,167.41,37.0039]
[1730829094033,17.13707491,167.45,167.41,37.0039]
[1730829094815,17.13707491,167.46,167.41,37.0039]
[1730829096329,17.13707491,167.45,167.41,20.9064]
[1730829096537,17.13707491,167.45,167.41,14.9333]
[1730829096939,23.10907491,167.45,167.41,14.9333]
[1730829097456,10.970797,167.42,167.38,20.91]
[1730829099143,10.970797,167.43,167.38,31.880797]
[1730829100857,16.943297,167.44,167.39,10.970797]
[1730829101054,16.943297,167.44,167.38,31.880797]
[1730829101254,10.970797,167.43,167.38,31.880797]
[1730829101543,10.970797,167.41,167.34,20.0]
[1730829101755,10.970797,167.41,167.35,25.909397]
[1730829101974,10.970797,167.37,167.33,15.9892]
[1730829102139,10.970797,167.39,167.33,32.936097]
[1730829102963,10.970797,167.37,167.33,20.9166]
[1730829103270,5.9742,167.39,167.33,20.9166]
[1730829103271,10.970797,167.36,167.33,20.9166]
[1730829103855,10.970797,167.37,167.33,20.9166]
[1730829104845,10.970797,167.38,167.33,20.9166]
[1730829105168,10.970797,167.39,167.33,31.887397]
[1730829105337,17.15206964,167.39,167.33,38.06866964]
[1730829106865,23.12626964,167.39,167.33,38.06866964]
[1730829107070,5.9742,167.39,167.34,17.15206964]
[1730829107442,17.15206964,167.38,167.33,38.06866964]
[1730829107946,17.15206964,167.39,167.33,38.06866964]
[1730829108145,17.15206964,167.39,167.34,17.15206964]
[1730829109564,23.12606964,167.39,167.34,23.12776964]
[1730829109954,17.15206964,167.41,167.36,17.15206964]
[1730829110138,17.15206964,167.42,167.36,32.53256964]
[1730829110358,17.15206964,167.41,167.36,32.53256964]
[1730829111172,17.15206964,167.41,167.37,5.9747]
[1730829111359,17.15206964,167.42,167.37,23.12676964]
[1730829111657,23.12496964,167.43,167.37,38.06366964]
[1730829112047,17.15206964,167.42,167.37,20.9116]
[1730829112966,17.15206964,167.43,167.37,38.06366964]
[1730829113164,14.9278,167.48,167.37,38.06366964]
[1730829113165,17.15206964,167.45,167.39,17.15206964]
[1730829114061,17.15206964,167.44,167.39,17.15206964]
[1730829114262,17.15206964,167.43,167.37,38.06366964]
[1730829115248,23.12476964,167.43,167.37,38.06366964]
[1730829115549,17.15206964,167.43,167.37,38.06366964]
[1730829115884,23.12436964,167.44,167.38,17.15206964]
[1730829117345,17.15206964,167.41,167.37,20.9116]
[1730829117865,17.15206964,167.42,167.37,20.9116]
[1730829118068,17.15206964,167.4,167.35,5.9752]
[1730829118958,17.15206964,167.4,167.35,20.9139]
[1730829119372,17.15206964,167.41,167.35,38.06596964]
[1730829120550,23.12486964,167.43,167.37,5.9747]
[1730829120756,17.15206964,167.45,167.38,17.15206964]
[1730829121191,15.8363,167.55,167.44,34.30413928]
[1730829121368,15.8363,167.55,167.48,17.15206964]
[1730829121369,23.12106964,167.54,167.48,17.15206964]
[1730829121567,17.15206964,167.55,167.49,17.15206964]
[1730829121754,23.12046964,167.55,167.49,17.15206964]
[1730829121958,17.15206964,167.56,167.5,17.15206964]
[1730829122273,17.15206964,167.57,167.51,17.15206964]
[1730829122572,6.3219,167.6,167.47,12.0282]
[1730829122573,17.15206964,167.52,167.47,12.0282]
[1730829122747,17.15206964,167.54,167.48,17.15206964]
[1730829123174,17.15206964,167.56,167.5,17.15206964]
[1730829123789,17.15206964,167.59,167.53,17.15206964]
[1730829124881,17.15206964,167.59,167.53,38.04356964]
[1730829125163,17.15206964,167.6,167.54,17.15206964]
[1730829125364,0.3130753,167.61,167.53,20.8915]
[1730829125365,17.46514494,167.61,167.55,17.15206964]
[1730829125783,0.3130753,167.61,167.57,17.15206964]
[1730829125961,23.43144494,167.61,167.55,33.33426964]
[1730829126366,17.15206964,167.58,167.53,14.9227]
[1730829126751,17.15206964,167.57,167.51,39.30396964]
[1730829126869,17.15206964,167.58,167.52,17.15206964]
[1730829127580,17.15206964,167.56,167.51,54.22836964]
[1730829127776,17.15206964,167.55,167.51,37.0763]
[1730829127986,17.15206964,167.56,167.51,37.0763]
[1730829128487,23.11976964,167.57,167.51,54.22836964]
[1730829129391,17.15206964,167.56,167.51,37.0763]
[1730829129578,17.15206964,167.53,167.48,5.9705]
[1730829129775,17.15206964,167.55,167.49,17.15206964]
[1730829129987,17.15206964,167.57,167.51,17.15206964]
[1730829130575,17.15206964,167.56,167.5,17.15206964]
[1730829131044,17.15206964,167.56,167.51,5.9697]
[1730829131168,17.15206964,167.54,167.48,32.07916964]
[1730829131368,5.9669,167.59,167.48,32.07916964]
[1730829131369,17.15206964,167.55,167.49,20.8964]
[1730829131566,17.15206964,167.56,167.5,17.15206964]
[1730829132289,17.15206964,167.57,167.51,17.15206964]
[1730829132583,17.15206964,167.57,167.52,5.9694]
[1730829132892,17.15206964,167.6,167.54,17.15206964]
[1730829133084,17.15206964,167.58,167.52,38.04496964]
[1730829133390,17.15206964,167.59,167.53,17.15206964]
[1730829133691,17.15206964,167.6,167.54,17.15206964]
[1730829134003,17.15206964,167.58,167.53,5.9687]
[1730829134394,17.15206964,167.59,167.53,23.12076964]
[1730829134582,17.15206964,167.57,167.53,5.9687]
[1730829134962,17.15206964,167.58,167.52,17.15206964]
[1730829135365,23.11906964,167.59,167.53,17.15206964]
[1730829136091,17.15206964,167.58,167.52,17.15206964]
[1730829136287,23.11906964,167.59,167.53,17.15206964]
[1730829136768,17.15206964,167.6,167.54,17.15206964]
[1730829136962,23.43144494,167.61,167.55,17.15206964]
[1730829137167,0.3130753,167.61,167.57,17.15206964]
[1730829137497,17.46514494,167.61,167.55,23.81506964]
[1730829137897,0.3130753,167.61,167.56,17.15206964]
[1730829138777,0.3130753,167.61,167.56,23.11966964]
[1730829139488,0.3130753,167.61,167.56,38.03966964]
[1730829140064,0.3130753,167.61,167.57,17.15206964]
[1730829140268,0.3130753,167.61,167.59,17.15206964]
[1730829140589,0.3130753,167.61,167.6,17.15206964]
[1730829141088,0.3130753,167.61,167.6,23.11856964]
[1730829141306,0.3130753,167.61,167.6,5.9665]
[1730829141796,0.3130753,167.61,167.59,14.917]
[1730829142472,17.46514494,167.61,167.56,52.95966964]
[1730829142803,17.46514494,167.61,167.56,5.9676]
[1730829143682,17.46514494,167.61,167.56,23.11966964]
[1730829144594,17.46514494,167.61,167.56,5.9676]
[1730829145389,17.46514494,167.61,167.56,23.11966964]
[1730829145587,0.3130753,167.61,167.57,23.11966964]
[1730829146995,0.3130753,167.61,167.56,23.12006964]
[1730829147200,17.15206964,167.59,167.55,21.5832]
[1730829147372,6.2792753,167.61,167.55,14.9202]
[1730829147373,17.15206964,167.58,167.55,14.9202]
[1730829147582,17.15206964,167.59,167.55,14.9202]
[1730829149181,17.15206964,167.59,167.54,38.51256964]
[1730829149182,17.15206964,167.57,167.51,38.13036964]
[1730829149416,17.15206964,167.55,167.51,6.0547]
[1730829149573,17.15206964,167.57,167.51,29.17646964]
[1730829150083,17.15206964,167.56,167.51,29.17646964]
[1730829150283,17.15206964,167.57,167.51,44.10086964]
[1730829150483,17.15206964,167.58,167.53,38.04376964]
[1730829150694,17.15206964,167.59,167.54,17.15206964]
[1730829150884,17.15206964,167.6,167.55,17.15206964]
[1730829151196,17.15206964,167.6,167.54,17.15206964]
[1730829151378,17.15206964,167.58,167.53,20.8917]
[1730829151702,17.15206964,167.58,167.53,38.04376964]
[1730829152195,17.15206964,167.56,167.51,12.0242]
[1730829152397,17.15206964,167.58,167.52,17.15206964]
[1730829152905,23.11936964,167.58,167.52,23.12126964]
[1730829153282,17.15206964,167.58,167.52,38.04476964]
[1730829153603,17.15206964,167.57,167.52,38.04476964]
[1730829154689,17.15206964,167.58,167.52,38.04476964]
[1730829155194,17.15206964,167.6,167.54,17.15206964]
[1730829155720,17.46514494,167.61,167.55,17.15206964]
[1730829156176,17.46514494,167.61,167.52,20.8927]
[1730829156177,0.3130753,167.61,167.57,17.15206964]
[1730829156287,0.3130753,167.61,167.56,17.15206964]
[1730829156804,0.3130753,167.61,167.57,5.9676]
[1730829157411,0.3130753,167.61,167.57,38.03876964]
[1730829158700,0.3130753,167.61,167.57,20.8867]
[1730829159006,17.46514494,167.61,167.57,20.8867]
[1730829159320,17.15206964,167.6,167.57,14.9191]
[1730829160493,17.15206964,167.6,167.55,23.12006964]
[1730829161302,6.2793753,167.61,167.55,23.12006964]
[1730829161505,0.3130753,167.61,167.56,17.15206964]
[1730829162095,0.3130753,167.61,167.57,17.15206964]
[1730829162484,0.3130753,167.61,167.58,5.9672]
[1730829162689,0.3130753,167.61,167.59,17.15206964]
[1730829163194,0.3130753,167.61,167.6,17.15206964]
[1730829163807,0.3130753,167.61,167.6,37.15206964]
[1730829164120,0.3130753,167.61,167.6,78.08102328]
[1730829164285,0.3130753,167.61,167.6,60.92895364]
[1730829164487,0.3130753,167.61,167.6,66.89545364]
[1730829164696,0.3130753,167.61,167.6,84.14752328]
[1730829166503,0.3130753,167.61,167.6,66.99545364]
[1730829166710,0.3130753,167.61,167.6,84.14752328]
[1730829167920,0.3130753,167.61,167.6,66.99545364]
[1730829168118,6.2764753,167.69,167.63,20.1]
[1730829168119,0.3130753,167.69,167.63,20.1]
[1730829168301,0.3130753,167.69,167.68,17.15206964]
[1730829169986,0.3130753,167.69,167.68,23.11576964]
[1730829170814,0.3130753,167.69,167.68,64.04472328]
[1730829171513,0.3130753,167.69,167.68,46.89265364]
[1730829171690,0.3130753,167.69,167.68,64.04472328]
[1730829173415,0.3130753,167.69,167.68,46.89265364]
[1730829174210,0.3130753,167.69,167.68,23.11576964]
[1730829178021,0.3130753,167.69,167.63,20.0]
[1730829178022,17.46514494,167.69,167.63,38.03066964]
[1730829178394,17.15206964,167.68,167.63,38.03066964]
[1730829179116,17.46514494,167.69,167.63,38.03066964]
[1730829180490,17.15206964,167.67,167.63,20.8786]
[1730829180791,17.15206964,167.67,167.63,14.9131]
[1730829181210,17.15206964,167.66,167.63,14.9131]
[1730829182221,17.15206964,167.64,167.58,15.0095]
[1730829182405,17.15206964,167.63,167.58,20.9767]
[1730829182599,17.15206964,167.63,167.58,35.8949]
[1730829182914,23.11746964,167.64,167.58,53.04696964]
[1730829183730,23.11746964,167.64,167.59,25.9669]
[1730829183930,23.11746964,167.64,167.59,43.11896964]
[1730829184108,17.15206964,167.64,167.59,43.11896964]
[1730829184305,15.7262,167.66,167.6,20.8829]
[1730829184517,17.15206964,167.67,167.61,17.15206964]
[1730829184997,17.15206964,167.66,167.6,38.03496964]
[1730829185703,17.15206964,167.65,167.6,38.03496964]
[1730829186007,23.11686964,167.65,167.6,32.06846964]
[1730829186213,5.9648,167.65,167.6,38.03496964]
[1730829186607,23.11686964,167.65,167.6,38.03496964]
[1730829187219,17.15206964,167.65,167.6,38.03496964]
[1730829187422,17.15206964,167.65,167.6,20.8829]
[1730829188029,23.11646964,167.66,167.6,38.03496964]
[1730829188620,17.15206964,167.65,167.6,20.8829]
[1730829189129,23.11646964,167.66,167.6,38.03496964]
[1730829190903,17.15206964,167.66,167.6,38.03496964]
[1730829191110,23.42884494,167.69,167.63,17.15206964]
[1730829191413,23.42884494,167.69,167.64,17.15206964]
[1730829191817,0.3130753,167.69,167.64,17.15206964]
[1730829192009,17.46514494,167.69,167.64,17.15206964]
[1730829192929,17.46514494,167.69,167.64,38.02976964]
[1730829193601,0.3130753,167.69,167.64,38.02976964]
[1730829193807,0.3130753,167.69,167.65,17.15206964]
[1730829194231,0.3130753,167.69,167.64,38.02976964]
[1730829196310,17.46514494,167.69,167.64,14.9129]
[1730829197217,0.3130753,167.69,167.64,32.06496964]
[1730829197415,17.15206964,167.67,167.62,5.9658]
[1730829197617,17.15206964,167.66,167.62,5.9658]
[1730829200236,17.15206964,167.65,167.6,20.8821]
[1730829201916,23.11656964,167.66,167.6,32.06766964]
[1730829202957,17.15206964,167.65,167.6,32.06766964]
[1730829203143,23.11656964,167.66,167.6,38.03416964]
[1730829203322,17.15206964,167.66,167.6,38.03416964]
[1730829204451,17.15206964,167.68,167.62,17.15206964]
[1730829205138,23.11586964,167.68,167.62,23.11756964]
[1730829205826,23.42844494,167.69,167.63,17.15206964]
[1730829206341,0.3130753,167.69,167.64,17.15206964]
[1730829206664,0.3130753,167.69,167.65,17.15206964]
[1730829207420,17.46514494,167.69,167.63,17.15206964]
[1730829207739,17.15206964,167.65,167.62,14.9146]
[1730829209439,17.15206964,167.66,167.62,14.9146]
[1730829209625,23.11616964,167.67,167.62,14.9146]
[1730829210553,23.11616964,167.67,167.62,20.8804]
[1730829211122,17.15206964,167.66,167.62,20.8804]
[1730829211610,17.15206964,167.66,167.62,14.9146]
[1730829211822,23.11616964,167.67,167.62,14.9146]
[1730829212540,0.3130753,167.69,167.63,17.15206964]
[1730829212541,17.46514494,167.69,167.63,17.15206964]
[1730829213570,23.42854494,167.69,167.64,5.9651]
[1730829214617,17.15206964,167.68,167.64,5.9651]
[1730829215219,17.15206964,167.68,167.62,17.15206964]
[1730829215427,0.3130753,167.69,167.64,17.15206964]
[1730829215627,0.3130753,167.69,167.65,17.15206964]
[1730829215854,0.3130753,167.69,167.6,40.92895364]
[1730829215855,0.3130753,167.69,167.66,17.15206964]
[1730829216220,0.3130753,167.69,167.67,17.15206964]
[1730829216638,0.3130753,167.69,167.66,17.15206964]
[1730829217028,0.3130753,167.69,167.68,17.15206964]
[1730829217385,0.3130753,167.69,167.68,23.11576964]
[1730829218544,0.3130753,167.69,167.67,32.06196964]
[1730829218946,0.3130753,167.69,167.67,14.9099]
[1730829219248,0.3130753,167.69,167.67,32.06196964]
[1730829219551,0.3130753,167.69,167.67,38.02596964]
[1730829220933,0.3130753,167.69,167.67,14.9099]
[1730829221142,17.46514494,167.69,167.64,39.67596964]
[1730829221336,17.46514494,167.69,167.65,5.9647]
[1730829221539,17.15206964,167.68,167.65,5.9647]
[1730829221838,17.46514494,167.69,167.65,5.9647]
[1730829222035,0.3130753,167.69,167.65,5.9647]
[1730829224543,17.46514494,167.69,167.65,5.9647]
[1730829225147,0.3130753,167.69,167.65,5.9647]
[1730829225637,17.46514494,167.69,167.65,5.9647]
[1730829226038,0.3130753,167.69,167.65,5.9647]
[1730829226736,17.46514494,167.69,167.65,5.9647]
[1730829227133,17.15206964,167.66,167.61,20.0]
[1730829227328,17.15206964,167.66,167.61,30.94145811]
[1730829227329,10.94145811,167.66,167.61,30.94145811]
[1730829227739,10.94145811,167.67,167.61,30.94145811]
[1730829228436,10.94145811,167.67,167.62,20.8804]
[1730829228644,10.94145811,167.68,167.63,10.94145811]
[1730829228971,0.3130753,167.69,167.62,20.8804]
[1730829229155,0.3130753,167.69,167.64,10.94145811]
[1730829229764,11.25453341,167.69,167.63,30.94145811]
[1730829229973,10.94145811,167.68,167.63,30.94145811]
[1730829230135,10.94145811,167.66,167.62,20.8804]
[1730829230333,10.94145811,167.65,167.62,14.9146]
[1730829232742,10.94145811,167.64,167.62,14.9146]
[1730829234033,10.94145811,167.65,167.62,14.9146]
[1730829236345,10.94145811,167.64,167.62,14.9146]
[1730829238272,10.94145811,167.63,167.59,20.8839]
[1730829238459,10.94145811,167.62,167.59,20.8839]
[1730829238777,10.94145811,167.63,167.59,20.8839]
[1730829239138,10.94145811,167.63,167.59,14.9172]
[1730829240977,10.94145811,167.65,167.59,25.85865811]
[1730829241461,10.94145811,167.64,167.59,20.8841]
[1730829241722,10.94145811,167.63,167.59,20.8841]
[1730829242373,10.94145811,167.64,167.59,20.8841]
[1730829242867,10.94145811,167.63,167.59,20.8841]
[1730829244754,10.94145811,167.63,167.59,14.9172]
[1730829245185,10.94145811,167.6,167.56,21.88051499]
[1730829245468,10.94145811,167.58,167.56,5.9679]
[1730829246165,10.94145811,167.57,167.55,20.8885]
[1730829246374,10.94145811,167.56,167.55,20.8885]
[1730829246948,10.94145811,167.56,167.55,14.9202]
[1730829247150,10.94145811,167.57,167.55,14.9202]
[1730829248557,5.9648,167.65,167.55,14.9202]
[1730829248878,10.94145811,167.61,167.55,14.9202]
[1730829249181,5.9648,167.65,167.55,25.86165811]
[1730829249572,10.94145811,167.62,167.56,10.94145811]
[1730829250076,10.94145811,167.62,167.57,20.8867]
[1730829251346,5.9644,167.66,167.57,31.82815811]
[1730829251653,10.94145811,167.63,167.57,31.82815811]
[1730829251974,10.94145811,167.63,167.58,20.0]
[1730829252275,10.94145811,167.63,167.59,5.9669]
[1730829253746,10.94145811,167.63,167.59,20.8842]
[1730829253965,15.7127753,167.69,167.6,10.94145811]